[Event "Titled Tuesday Blitz October 25 Late 2022"]
[White "Ardila, Oscar Humberto"]
[Black "Melikyan, Gnel"]
[WhiteFideId "4404742"]
[BlackFideId "54109990"]
[WhiteElo "1898"]
[BlackElo "2138"]
[Result "0-1"]
[Round "08"]
[TimeControl "180+1"]
[Date "2022.10.26"]
[WhiteClock "0:00:18"]
[BlackClock "0:00:21"]

1. d4 {[%clk 0:03:00]}  b6 {[%clk 0:02:57]} 2. Nf3 {[%clk 0:02:58]}  Bb7 {[%clk 0:02:58]} 3. e3 {[%clk 0:02:58]}  Nf6 {[%clk 0:02:53]} 4. Be2 {[%clk 0:02:59]}  g6 {[%clk 0:02:52]} 5. O-O {[%clk 0:02:59]}  Bg7 {[%clk 0:02:51]} 6. Nbd2 {[%clk 0:02:59]}  O-O {[%clk 0:02:50]} 7. c4 {[%clk 0:03:00]}  d6 {[%clk 0:02:47]} 8. b3 {[%clk 0:03:00]}  e5 {[%clk 0:02:46]} 9. dxe5 {[%clk 0:02:52]}  Ng4 {[%clk 0:02:45]} 10. Bb2 {[%clk 0:02:50]}  Nc6 {[%clk 0:02:38]} 11. Nd4 {[%clk 0:02:26]}  Ngxe5 {[%clk 0:02:32]} 12. Nxc6 {[%clk 0:02:21]}  Bxc6 {[%clk 0:02:31]} 13. Bd4 {[%clk 0:02:13]}  Re8 {[%clk 0:02:30]} 14. Nf3 {[%clk 0:02:12]}  Qe7 {[%clk 0:02:18]} 15. h3 {[%clk 0:01:53]}  Rad8 {[%clk 0:02:18]} 16. Rc1 {[%clk 0:01:50]}  Bxf3 {[%clk 0:01:56]} 17. Bxf3 {[%clk 0:01:50]}  Nxf3+ {[%clk 0:01:55]} 18. Qxf3 {[%clk 0:01:50]}  Bxd4 {[%clk 0:01:55]} 19. exd4 {[%clk 0:01:50]}  Qe4 {[%clk 0:01:55]} 20. Qc3 {[%clk 0:01:44]}  Qf4 {[%clk 0:01:53]} 21. Rfe1 {[%clk 0:01:32]}  Re4 {[%clk 0:01:47]} 22. Rxe4 {[%clk 0:01:29]}  Qxe4 {[%clk 0:01:48]} 23. Re1 {[%clk 0:01:29]}  Qh4 {[%clk 0:01:48]} 24. d5 {[%clk 0:01:20]}  Qf4 {[%clk 0:01:37]} 25. f3 {[%clk 0:01:14]}  h5 {[%clk 0:01:34]} 26. Re4 {[%clk 0:01:14]}  Qf5 {[%clk 0:01:26]} 27. g4 {[%clk 0:00:56]}  hxg4 {[%clk 0:01:23]} 28. hxg4 {[%clk 0:00:56]}  Qg5 {[%clk 0:01:21]} 29. Kg2 {[%clk 0:00:51]}  Qh4 {[%clk 0:01:05]} 30. Re1 {[%clk 0:00:39]}  Qg5 {[%clk 0:00:36]} 31. Rh1 {[%clk 0:00:36]}  Qe5 {[%clk 0:00:35]} 32. Qxe5 {[%clk 0:00:23]}  dxe5 {[%clk 0:00:35]} 33. Re1 {[%clk 0:00:23]}  Re8 {[%clk 0:00:27]} 34. f4 {[%clk 0:00:24]}  e4 {[%clk 0:00:27]} 35. f5 {[%clk 0:00:24]}  Kg7 {[%clk 0:00:23]} 36. Kg3 {[%clk 0:00:23]}  Kf6 {[%clk 0:00:22]} 37. Kf4 {[%clk 0:00:19]}  g5+ {[%clk 0:00:22]} 38. Ke3 {[%clk 0:00:19]}  Rh8 {[%clk 0:00:19]} 39. Kxe4 {[%clk 0:00:19]}  Re8+ {[%clk 0:00:20]} 40. Kf3 {[%clk 0:00:18]}  Rxe1 {[%clk 0:00:21]} 0-1


[Site "https://www.chess.com"]

[Event "Titled Tuesday Blitz October 25 Late 2022"]
[White "Ashiku, Franc"]
[Black "Fernandez Siles, Luis"]
[WhiteFideId "4700066"]
[BlackFideId "2209420"]
[WhiteElo "2306"]
[BlackElo "2186"]
[Result "1-0"]
[Round "08"]
[TimeControl "180+1"]
[Date "2022.10.26"]
[WhiteClock "0:00:11"]
[BlackClock "0:00:20"]

1. d4 {[%clk 0:03:00]}  Nf6 {[%clk 0:02:59]} 2. c4 {[%clk 0:03:01]}  g6 {[%clk 0:03:00]} 3. Nf3 {[%clk 0:03:00]}  Bg7 {[%clk 0:03:00]} 4. g3 {[%clk 0:03:00]}  O-O {[%clk 0:03:01]} 5. Bg2 {[%clk 0:03:01]}  d6 {[%clk 0:03:01]} 6. O-O {[%clk 0:03:02]}  c6 {[%clk 0:03:02]} 7. b4 {[%clk 0:02:54]}  Nbd7 {[%clk 0:02:54]} 8. a4 {[%clk 0:02:49]}  e5 {[%clk 0:02:54]} 9. e3 {[%clk 0:02:34]}  e4 {[%clk 0:02:53]} 10. Nfd2 {[%clk 0:02:33]}  d5 {[%clk 0:02:53]} 11. Nc3 {[%clk 0:02:32]}  Re8 {[%clk 0:02:44]} 12. b5 {[%clk 0:02:32]}  h5 {[%clk 0:02:43]} 13. Ba3 {[%clk 0:02:22]}  Nf8 {[%clk 0:02:37]} 14. bxc6 {[%clk 0:02:19]}  bxc6 {[%clk 0:02:37]} 15. cxd5 {[%clk 0:02:20]}  cxd5 {[%clk 0:02:37]} 16. Nb5 {[%clk 0:02:19]}  Bg4 {[%clk 0:02:22]} 17. Qc2 {[%clk 0:02:04]}  Rc8 {[%clk 0:02:14]} 18. Qa2 {[%clk 0:02:03]}  Re6 {[%clk 0:02:02]} 19. Nxa7 {[%clk 0:02:00]}  Ra8 {[%clk 0:01:56]} 20. Bc5 {[%clk 0:01:58]}  N8d7 {[%clk 0:01:47]} 21. Nb5 {[%clk 0:01:52]}  Nxc5 {[%clk 0:01:44]} 22. dxc5 {[%clk 0:01:53]}  Nd7 {[%clk 0:01:44]} 23. Rac1 {[%clk 0:01:49]}  Ne5 {[%clk 0:01:44]} 24. Nd4 {[%clk 0:01:21]}  Rea6 {[%clk 0:01:42]} 25. c6 {[%clk 0:01:14]}  Rxa4 {[%clk 0:01:32]} 26. Qb3 {[%clk 0:01:14]}  Ra3 {[%clk 0:01:25]} 27. Qb5 {[%clk 0:01:12]}  Nd3 {[%clk 0:01:20]} 28. c7 {[%clk 0:01:09]}  Qg5 {[%clk 0:01:02]} 29. h4 {[%clk 0:00:54]}  Qe5 {[%clk 0:00:59]} 30. Rc2 {[%clk 0:00:49]}  Rc8 {[%clk 0:00:56]} 31. Qb7 {[%clk 0:00:31]}  Bh6 {[%clk 0:00:51]} 32. Nc6 {[%clk 0:00:17]}  Qd6 {[%clk 0:00:42]} 33. Na7 {[%clk 0:00:17]}  Rxa7 {[%clk 0:00:41]} 34. Qxa7 {[%clk 0:00:18]}  d4 {[%clk 0:00:35]} 35. Nxe4 {[%clk 0:00:18]}  Qe7 {[%clk 0:00:30]} 36. Qxd4 {[%clk 0:00:16]}  Nb4 {[%clk 0:00:22]} 37. Nf6+ {[%clk 0:00:16]}  Kf8 {[%clk 0:00:21]} 38. Nd7+ {[%clk 0:00:13]}  Bxd7 {[%clk 0:00:20]} 39. Rd1 {[%clk 0:00:11]}  Nxc2 {[%clk 0:00:20]} 40. Qh8# {[%clk 0:00:11]} 1-0


[Site "https://www.chess.com"]

[Event "Titled Tuesday Blitz October 25 Late 2022"]
[White "Baglan, Esat"]
[Black "Buscar, Michael"]
[WhiteFideId "6309216"]
[BlackFideId "2603616"]
[WhiteElo "2231"]
[BlackElo "2010"]
[Result "1-0"]
[Round "08"]
[TimeControl "180+1"]
[Date "2022.10.26"]
[WhiteClock "0:01:11"]
[BlackClock "0:00:37"]

1. e4 {[%clk 0:02:55]}  c6 {[%clk 0:02:58]} 2. Nc3 {[%clk 0:02:55]}  d6 {[%clk 0:02:57]} 3. Nf3 {[%clk 0:02:56]}  e5 {[%clk 0:02:57]} 4. d4 {[%clk 0:02:56]}  Qc7 {[%clk 0:02:54]} 5. a4 {[%clk 0:02:56]}  Bg4 {[%clk 0:02:53]} 6. Be3 {[%clk 0:02:55]}  Nf6 {[%clk 0:02:53]} 7. h3 {[%clk 0:02:54]}  Bh5 {[%clk 0:02:53]} 8. Be2 {[%clk 0:02:52]}  Nbd7 {[%clk 0:02:51]} 9. Nh4 {[%clk 0:02:46]}  Bg6 {[%clk 0:02:32]} 10. Nxg6 {[%clk 0:02:45]}  hxg6 {[%clk 0:02:32]} 11. d5 {[%clk 0:02:36]}  Be7 {[%clk 0:02:27]} 12. a5 {[%clk 0:02:31]}  c5 {[%clk 0:02:19]} 13. a6 {[%clk 0:02:30]}  bxa6 {[%clk 0:02:02]} 14. Rxa6 {[%clk 0:02:27]}  Qb7 {[%clk 0:01:56]} 15. Bb5 {[%clk 0:01:35]}  O-O {[%clk 0:01:42]} 16. Qd3 {[%clk 0:01:31]}  Rab8 {[%clk 0:01:20]} 17. O-O {[%clk 0:01:26]}  Nb6 {[%clk 0:01:15]} 18. Rfa1 {[%clk 0:01:23]}  Nc8 {[%clk 0:01:13]} 19. b3 {[%clk 0:01:16]}  Ne8 {[%clk 0:01:02]} 20. Bc6 {[%clk 0:01:15]}  Qc7 {[%clk 0:00:56]} 21. Nb5 {[%clk 0:01:14]}  Rxb5 {[%clk 0:00:43]} 22. Qxb5 {[%clk 0:01:12]}  f5 {[%clk 0:00:37]} 23. Bxe8 {[%clk 0:01:11]} 1-0


[Site "https://www.chess.com"]

[Event "Titled Tuesday Blitz October 25 Late 2022"]
[White "Banzea, Alexandru-Bogdan"]
[Black "Koutlas, Nikolaos"]
[WhiteFideId "1232622"]
[BlackFideId "25827138"]
[WhiteElo "2294"]
[BlackElo "2167"]
[Result "0-1"]
[Round "08"]
[TimeControl "180+1"]
[Date "2022.10.26"]
[WhiteClock "0:00:02"]
[BlackClock "0:00:27"]

1. d4 {[%clk 0:03:00]}  Nf6 {[%clk 0:02:58]} 2. Bf4 {[%clk 0:03:00]}  Ne4 {[%clk 0:02:54]} 3. Nd2 {[%clk 0:02:54]}  Nxd2 {[%clk 0:02:51]} 4. Qxd2 {[%clk 0:02:55]}  f5 {[%clk 0:02:47]} 5. Nf3 {[%clk 0:02:54]}  e6 {[%clk 0:02:44]} 6. e3 {[%clk 0:02:54]}  Be7 {[%clk 0:02:43]} 7. Be2 {[%clk 0:02:50]}  b6 {[%clk 0:02:43]} 8. O-O {[%clk 0:02:50]}  Bb7 {[%clk 0:02:43]} 9. c4 {[%clk 0:02:38]}  d5 {[%clk 0:02:39]} 10. Ne5 {[%clk 0:02:28]}  Nd7 {[%clk 0:02:36]} 11. cxd5 {[%clk 0:02:16]}  Nxe5 {[%clk 0:02:29]} 12. Bxe5 {[%clk 0:02:15]}  Bxd5 {[%clk 0:02:24]} 13. Rac1 {[%clk 0:01:51]}  Bd6 {[%clk 0:02:24]} 14. Bb5+ {[%clk 0:01:21]}  Kf7 {[%clk 0:02:21]} 15. f4 {[%clk 0:00:59]}  Rg8 {[%clk 0:02:09]} 16. Bc6 {[%clk 0:00:58]}  g5 {[%clk 0:02:05]} 17. Bxd5 {[%clk 0:00:56]}  exd5 {[%clk 0:02:05]} 18. Rc6 {[%clk 0:00:52]}  gxf4 {[%clk 0:02:00]} 19. Rxf4 {[%clk 0:00:53]}  Rg5 {[%clk 0:01:54]} 20. Qf2 {[%clk 0:00:36]}  Qd7 {[%clk 0:01:50]} 21. Qc2 {[%clk 0:00:26]}  Rag8 {[%clk 0:01:46]} 22. g3 {[%clk 0:00:20]}  Qe6 {[%clk 0:01:33]} 23. Bxd6 {[%clk 0:00:09]}  Qxe3+ {[%clk 0:01:29]} 24. Kf1 {[%clk 0:00:07]}  cxd6 {[%clk 0:01:24]} 25. Rc7+ {[%clk 0:00:07]}  Ke6 {[%clk 0:01:20]} 26. Qc6 {[%clk 0:00:04]}  Qd3+ {[%clk 0:01:14]} 27. Ke1 {[%clk 0:00:04]}  Qb1+ {[%clk 0:01:02]} 28. Ke2 {[%clk 0:00:05]}  Qxb2+ {[%clk 0:01:01]} 29. Ke1 {[%clk 0:00:05]}  Qa1+ {[%clk 0:00:58]} 30. Kf2 {[%clk 0:00:05]}  Qxa2+ {[%clk 0:00:57]} 31. Kg1 {[%clk 0:00:04]}  Rxg3+ {[%clk 0:00:49]} 32. hxg3 {[%clk 0:00:05]}  Rxg3+ {[%clk 0:00:49]} 33. Kf1 {[%clk 0:00:06]}  Qg2+ {[%clk 0:00:47]} 34. Ke1 {[%clk 0:00:06]}  Qg1+ {[%clk 0:00:30]} 35. Ke2 {[%clk 0:00:01]}  Qe3+ {[%clk 0:00:29]} 36. Kd1 {[%clk 0:00:02]}  Rg1+ {[%clk 0:00:28]} 37. Kc2 {[%clk 0:00:02]}  Rc1+ {[%clk 0:00:27]} 0-1


[Site "https://www.chess.com"]

[Event "Titled Tuesday Blitz October 25 Late 2022"]
[White "Barbero Sendic, Alejandro"]
[Black "Averjanov, Alexey"]
[WhiteFideId "3001288"]
[BlackFideId "14109867"]
[WhiteElo "2314"]
[BlackElo "2674"]
[Result "1-0"]
[Round "08"]
[TimeControl "180+1"]
[Date "2022.10.26"]
[WhiteClock "0:01:38"]
[BlackClock "0:00:50"]

1. d4 {[%clk 0:03:00]}  d5 {[%clk 0:02:58]} 2. Nc3 {[%clk 0:03:00]}  Nf6 {[%clk 0:02:58]} 3. Bf4 {[%clk 0:03:00]}  a6 {[%clk 0:02:58]} 4. e3 {[%clk 0:02:57]}  e6 {[%clk 0:02:57]} 5. Bd3 {[%clk 0:02:57]}  c5 {[%clk 0:02:57]} 6. dxc5 {[%clk 0:02:54]}  Bxc5 {[%clk 0:02:57]} 7. Nf3 {[%clk 0:02:55]}  Nc6 {[%clk 0:02:57]} 8. O-O {[%clk 0:02:54]}  O-O {[%clk 0:02:57]} 9. e4 {[%clk 0:02:55]}  Nb4 {[%clk 0:02:57]} 10. e5 {[%clk 0:02:51]}  Nxd3 {[%clk 0:02:57]} 11. Qxd3 {[%clk 0:02:51]}  Nd7 {[%clk 0:02:57]} 12. Ng5 {[%clk 0:02:47]}  g6 {[%clk 0:02:56]} 13. Qh3 {[%clk 0:02:43]}  h5 {[%clk 0:02:56]} 14. g4 {[%clk 0:02:32]}  Be7 {[%clk 0:02:52]} 15. Nf3 {[%clk 0:02:21]}  hxg4 {[%clk 0:02:51]} 16. Qxg4 {[%clk 0:02:22]}  Kg7 {[%clk 0:02:50]} 17. Kh1 {[%clk 0:02:18]}  Rh8 {[%clk 0:02:46]} 18. Rg1 {[%clk 0:02:17]}  b5 {[%clk 0:02:42]} 19. Ne2 {[%clk 0:02:14]}  d4 {[%clk 0:02:38]} 20. Nexd4 {[%clk 0:02:12]}  Bb7 {[%clk 0:02:38]} 21. Nxe6+ {[%clk 0:02:07]}  Kg8 {[%clk 0:01:02]} 22. Nxd8 {[%clk 0:02:04]}  Rxd8 {[%clk 0:01:03]} 23. e6 {[%clk 0:01:42]}  Nf6 {[%clk 0:00:58]} 24. exf7+ {[%clk 0:01:40]}  Kxf7 {[%clk 0:00:59]} 25. Qxg6+ {[%clk 0:01:40]}  Kf8 {[%clk 0:00:55]} 26. Qg7+ {[%clk 0:01:40]}  Ke8 {[%clk 0:00:54]} 27. Qxh8+ {[%clk 0:01:40]}  Bf8 {[%clk 0:00:53]} 28. Qxf6 {[%clk 0:01:38]}  Bxf3+ {[%clk 0:00:50]} 29. Rg2 {[%clk 0:01:38]} 1-0


[Site "https://www.chess.com"]

[Event "Titled Tuesday Blitz October 25 Late 2022"]
[White "Barria Zuniga, Daniel"]
[Black "Rios Escobar, Adan"]
[WhiteFideId "3400816"]
[BlackFideId "3403645"]
[WhiteElo "2414"]
[BlackElo "2381"]
[Result "1-0"]
[Round "08"]
[TimeControl "180+1"]
[Date "2022.10.26"]
[WhiteClock "0:00:19"]
[BlackClock "0:00:09"]

1. d4 {[%clk 0:03:00]}  Nf6 {[%clk 0:02:56]} 2. c4 {[%clk 0:03:01]}  g6 {[%clk 0:02:56]} 3. Nc3 {[%clk 0:03:00]}  Bg7 {[%clk 0:02:57]} 4. e4 {[%clk 0:03:01]}  d6 {[%clk 0:02:58]} 5. Be2 {[%clk 0:03:01]}  O-O {[%clk 0:02:58]} 6. Bg5 {[%clk 0:03:01]}  Na6 {[%clk 0:02:58]} 7. Qd2 {[%clk 0:03:01]}  e5 {[%clk 0:02:42]} 8. d5 {[%clk 0:03:00]}  Qe8 {[%clk 0:02:36]} 9. f3 {[%clk 0:02:49]}  h5 {[%clk 0:02:30]} 10. h3 {[%clk 0:02:31]}  Nh7 {[%clk 0:02:30]} 11. g4 {[%clk 0:02:22]}  Nxg5 {[%clk 0:02:27]} 12. Qxg5 {[%clk 0:02:21]}  hxg4 {[%clk 0:02:23]} 13. hxg4 {[%clk 0:02:20]}  Qd8 {[%clk 0:02:23]} 14. Qd2 {[%clk 0:02:14]}  c6 {[%clk 0:02:14]} 15. Nh3 {[%clk 0:02:08]}  cxd5 {[%clk 0:02:14]} 16. cxd5 {[%clk 0:02:08]}  Bd7 {[%clk 0:02:13]} 17. O-O-O {[%clk 0:02:07]}  Rc8 {[%clk 0:02:12]} 18. Kb1 {[%clk 0:02:07]}  Qa5 {[%clk 0:02:07]} 19. Nf2 {[%clk 0:01:27]}  b5 {[%clk 0:01:34]} 20. Nxb5 {[%clk 0:01:24]}  Qxd2 {[%clk 0:01:34]} 21. Rxd2 {[%clk 0:01:22]}  Bxb5 {[%clk 0:01:33]} 22. Bxb5 {[%clk 0:01:22]}  Nc5 {[%clk 0:01:33]} 23. Bc6 {[%clk 0:01:16]}  Rb8 {[%clk 0:01:26]} 24. Nd3 {[%clk 0:01:11]}  Nxd3 {[%clk 0:01:21]} 25. Rxd3 {[%clk 0:01:11]}  Bf6 {[%clk 0:01:05]} 26. Ra3 {[%clk 0:01:08]}  Kg7 {[%clk 0:00:58]} 27. Rxa7 {[%clk 0:01:05]}  Rh8 {[%clk 0:00:58]} 28. Rxh8 {[%clk 0:01:04]}  Rxh8 {[%clk 0:00:59]} 29. a4 {[%clk 0:01:04]}  Rh1+ {[%clk 0:00:54]} 30. Ka2 {[%clk 0:01:03]}  Kf8 {[%clk 0:00:46]} 31. a5 {[%clk 0:01:03]}  Rh3 {[%clk 0:00:36]} 32. b4 {[%clk 0:00:54]}  Rxf3 {[%clk 0:00:33]} 33. b5 {[%clk 0:00:54]}  Bg5 {[%clk 0:00:25]} 34. b6 {[%clk 0:00:54]}  Rf2+ {[%clk 0:00:15]} 35. Kb1 {[%clk 0:00:45]}  Rf1+ {[%clk 0:00:14]} 36. Kc2 {[%clk 0:00:44]}  Rf2+ {[%clk 0:00:15]} 37. Kd3 {[%clk 0:00:41]}  Rd2+ {[%clk 0:00:10]} 38. Kc3 {[%clk 0:00:40]}  Rd1 {[%clk 0:00:08]} 39. b7 {[%clk 0:00:34]}  Be3 {[%clk 0:00:08]} 40. b8=Q+ {[%clk 0:00:33]}  Kg7 {[%clk 0:00:09]} 41. Rd7 {[%clk 0:00:19]} 1-0


[Site "https://www.chess.com"]

[Event "Titled Tuesday Blitz October 25 Late 2022"]
[White "Baskakov, Egor"]
[Black "Paravyan, David"]
[WhiteFideId "24197866"]
[BlackFideId "4194985"]
[WhiteElo "2211"]
[BlackElo "2555"]
[Result "0-1"]
[Round "08"]
[TimeControl "180+1"]
[Date "2022.10.26"]
[WhiteClock "0:00:02"]
[BlackClock "0:00:04"]

1. e4 {[%clk 0:03:00]}  e5 {[%clk 0:03:00]} 2. Nc3 {[%clk 0:03:00]}  Nf6 {[%clk 0:03:00]} 3. g3 {[%clk 0:03:01]}  d5 {[%clk 0:03:00]} 4. exd5 {[%clk 0:03:02]}  Nxd5 {[%clk 0:03:01]} 5. Bg2 {[%clk 0:03:02]}  Nxc3 {[%clk 0:03:02]} 6. bxc3 {[%clk 0:03:03]}  Bd6 {[%clk 0:03:02]} 7. d3 {[%clk 0:03:03]}  O-O {[%clk 0:03:02]} 8. Ne2 {[%clk 0:03:04]}  Nc6 {[%clk 0:03:02]} 9. Rb1 {[%clk 0:03:04]}  Re8 {[%clk 0:03:01]} 10. O-O {[%clk 0:03:04]}  Bc5 {[%clk 0:02:42]} 11. Be3 {[%clk 0:03:01]}  Bb6 {[%clk 0:02:42]} 12. c4 {[%clk 0:02:58]}  Nd4 {[%clk 0:02:30]} 13. Nxd4 {[%clk 0:02:55]}  exd4 {[%clk 0:02:31]} 14. Bf4 {[%clk 0:02:55]}  c6 {[%clk 0:02:30]} 15. a4 {[%clk 0:02:51]}  Bc5 {[%clk 0:02:17]} 16. Qh5 {[%clk 0:02:48]}  Qe7 {[%clk 0:02:09]} 17. Bg5 {[%clk 0:02:26]}  Qe5 {[%clk 0:02:06]} 18. Qh4 {[%clk 0:02:19]}  h6 {[%clk 0:01:56]} 19. Bf4 {[%clk 0:02:19]}  Qe7 {[%clk 0:01:56]} 20. Qh5 {[%clk 0:02:12]}  Bb4 {[%clk 0:01:55]} 21. Be4 {[%clk 0:01:58]}  Bc3 {[%clk 0:01:53]} 22. a5 {[%clk 0:01:53]}  a6 {[%clk 0:01:49]} 23. Rb3 {[%clk 0:01:24]}  Qd8 {[%clk 0:01:44]} 24. Rxc3 {[%clk 0:01:15]}  dxc3 {[%clk 0:01:43]} 25. Qc5 {[%clk 0:01:11]}  Bg4 {[%clk 0:01:33]} 26. Rb1 {[%clk 0:01:07]}  Qd7 {[%clk 0:01:31]} 27. Be5 {[%clk 0:01:01]}  f6 {[%clk 0:01:14]} 28. Bxc3 {[%clk 0:00:59]}  Rad8 {[%clk 0:00:50]} 29. Qb6 {[%clk 0:00:41]}  Rxe4 {[%clk 0:00:48]} 30. dxe4 {[%clk 0:00:42]}  Bf3 {[%clk 0:00:48]} 31. Qe3 {[%clk 0:00:35]}  Qg4 {[%clk 0:00:48]} 32. e5 {[%clk 0:00:26]}  fxe5 {[%clk 0:00:37]} 33. Qxe5 {[%clk 0:00:22]}  Rd7 {[%clk 0:00:38]} 34. Qe8+ {[%clk 0:00:16]}  Kh7 {[%clk 0:00:37]} 35. Qe3 {[%clk 0:00:16]}  Rf7 {[%clk 0:00:33]} 36. Qd3+ {[%clk 0:00:12]}  Be4 {[%clk 0:00:33]} 37. Qd1 {[%clk 0:00:03]}  Qf5 {[%clk 0:00:30]} 38. Qe2 {[%clk 0:00:03]}  Bxc2 {[%clk 0:00:28]} 39. Re1 {[%clk 0:00:04]}  Bd3 {[%clk 0:00:28]} 40. Qe3 {[%clk 0:00:03]}  Bxc4 {[%clk 0:00:28]} 41. Qe4 {[%clk 0:00:02]}  Qxe4 {[%clk 0:00:24]} 42. Rxe4 {[%clk 0:00:03]}  Bd5 {[%clk 0:00:25]} 43. Re5 {[%clk 0:00:04]}  Rd7 {[%clk 0:00:23]} 44. f4 {[%clk 0:00:04]}  Kg8 {[%clk 0:00:19]} 45. Kf2 {[%clk 0:00:04]}  Kf7 {[%clk 0:00:19]} 46. Ke3 {[%clk 0:00:04]}  g6 {[%clk 0:00:19]} 47. h4 {[%clk 0:00:05]}  Be6 {[%clk 0:00:13]} 48. h5 {[%clk 0:00:04]}  Bf5 {[%clk 0:00:14]} 49. hxg6+ {[%clk 0:00:04]}  Kxg6 {[%clk 0:00:15]} 50. Bd4 {[%clk 0:00:04]}  h5 {[%clk 0:00:09]} 51. Re8 {[%clk 0:00:03]}  Kf7 {[%clk 0:00:09]} 52. Re5 {[%clk 0:00:04]}  Bg4 {[%clk 0:00:10]} 53. Bc5 {[%clk 0:00:03]}  Kf6 {[%clk 0:00:09]} 54. Bd4 {[%clk 0:00:03]}  Kg6 {[%clk 0:00:10]} 55. Bc5 {[%clk 0:00:03]}  Rd1 {[%clk 0:00:10]} 56. Bd4 {[%clk 0:00:03]}  Rb1 {[%clk 0:00:07]} 57. Rg5+ {[%clk 0:00:03]}  Kh6 {[%clk 0:00:06]} 58. Bg7+ {[%clk 0:00:03]}  Kh7 {[%clk 0:00:06]} 59. Be5 {[%clk 0:00:03]}  Rb3+ {[%clk 0:00:05]} 60. Kd4 {[%clk 0:00:03]}  Rxg3 {[%clk 0:00:06]} 61. Kc5 {[%clk 0:00:02]}  h4 {[%clk 0:00:04]} 62. Kd6 {[%clk 0:00:03]}  h3 {[%clk 0:00:04]} 63. Ke7 {[%clk 0:00:03]}  h2 {[%clk 0:00:04]} 64. Kf8 {[%clk 0:00:02]}  h1=Q {[%clk 0:00:04]} 65. Rg8 {[%clk 0:00:02]}  Qd5 {[%clk 0:00:02]} 66. Rg7+ {[%clk 0:00:02]}  Kh6 {[%clk 0:00:02]} 67. Re7 {[%clk 0:00:02]}  Qd8+ {[%clk 0:00:03]} 68. Kf7 {[%clk 0:00:02]}  Qxe7+ {[%clk 0:00:04]} 0-1


[Site "https://www.chess.com"]

[Event "Titled Tuesday Blitz October 25 Late 2022"]
[White "Bogaudinov, Rushan"]
[Black "Sivakumar, Shaaketh"]
[WhiteFideId "4129288"]
[BlackFideId "30940176"]
[WhiteElo "1945"]
[BlackElo "2174"]
[Result "0-1"]
[Round "08"]
[TimeControl "180+1"]
[Date "2022.10.26"]
[WhiteClock "0:00:11"]
[BlackClock "0:00:07"]

1. e4 {[%clk 0:02:58]}  e6 {[%clk 0:01:45]} 2. Nf3 {[%clk 0:02:58]}  d5 {[%clk 0:01:44]} 3. e5 {[%clk 0:02:58]}  c5 {[%clk 0:01:38]} 4. b4 {[%clk 0:02:58]}  c4 {[%clk 0:01:34]} 5. c3 {[%clk 0:02:57]}  a5 {[%clk 0:01:33]} 6. b5 {[%clk 0:02:56]}  a4 {[%clk 0:01:33]} 7. d3 {[%clk 0:02:56]}  cxd3 {[%clk 0:01:31]} 8. Bxd3 {[%clk 0:02:57]}  Nd7 {[%clk 0:01:30]} 9. O-O {[%clk 0:02:56]}  Nc5 {[%clk 0:01:29]} 10. Bc2 {[%clk 0:02:53]}  Bd7 {[%clk 0:01:20]} 11. Na3 {[%clk 0:02:53]}  Ne7 {[%clk 0:01:17]} 12. Rb1 {[%clk 0:02:43]}  Ng6 {[%clk 0:01:17]} 13. g3 {[%clk 0:02:31]}  Be7 {[%clk 0:01:16]} 14. h4 {[%clk 0:02:31]}  O-O {[%clk 0:01:13]} 15. h5 {[%clk 0:02:29]}  Nh8 {[%clk 0:01:13]} 16. h6 {[%clk 0:02:21]}  g6 {[%clk 0:01:09]} 17. c4 {[%clk 0:02:12]}  dxc4 {[%clk 0:00:53]} 18. Nxc4 {[%clk 0:02:13]}  Qc7 {[%clk 0:00:50]} 19. Bf4 {[%clk 0:01:55]}  Rac8 {[%clk 0:00:48]} 20. Nd6 {[%clk 0:01:50]}  Rcd8 {[%clk 0:00:43]} 21. Qe2 {[%clk 0:01:37]}  f5 {[%clk 0:00:35]} 22. Rfc1 {[%clk 0:01:18]}  b6 {[%clk 0:00:32]} 23. Bxa4 {[%clk 0:01:15]}  Nf7 {[%clk 0:00:33]} 24. Nxf7 {[%clk 0:01:06]}  Kxf7 {[%clk 0:00:34]} 25. Bb3 {[%clk 0:00:58]}  Bc8 {[%clk 0:00:27]} 26. Ng5+ {[%clk 0:00:56]}  Bxg5 {[%clk 0:00:27]} 27. Bxg5 {[%clk 0:00:57]}  Rd7 {[%clk 0:00:27]} 28. Bf4 {[%clk 0:00:42]}  Bb7 {[%clk 0:00:26]} 29. Rd1 {[%clk 0:00:34]}  Rfd8 {[%clk 0:00:26]} 30. Rd6 {[%clk 0:00:32]}  Ba8 {[%clk 0:00:19]} 31. Rbd1 {[%clk 0:00:31]}  Qb7 {[%clk 0:00:19]} 32. f3 {[%clk 0:00:31]}  Qxf3 {[%clk 0:00:17]} 33. Qxf3 {[%clk 0:00:31]}  Bxf3 {[%clk 0:00:17]} 34. R1d2 {[%clk 0:00:28]}  Be4 {[%clk 0:00:14]} 35. Bg5 {[%clk 0:00:23]}  Rxd6 {[%clk 0:00:13]} 36. exd6 {[%clk 0:00:22]}  Rd7 {[%clk 0:00:13]} 37. Bc4 {[%clk 0:00:19]}  Nb7 {[%clk 0:00:13]} 38. Bf4 {[%clk 0:00:18]}  Kf6 {[%clk 0:00:14]} 39. Be3 {[%clk 0:00:17]}  Rxd6 {[%clk 0:00:13]} 40. Rxd6 {[%clk 0:00:13]}  Nxd6 {[%clk 0:00:14]} 41. Be2 {[%clk 0:00:14]}  Nc8 {[%clk 0:00:14]} 42. a4 {[%clk 0:00:13]}  Ke5 {[%clk 0:00:09]} 43. Bd2 {[%clk 0:00:10]}  Kd6 {[%clk 0:00:08]} 44. a5 {[%clk 0:00:10]}  bxa5 {[%clk 0:00:09]} 45. Bxa5 {[%clk 0:00:11]}  e5 {[%clk 0:00:09]} 46. Bb4+ {[%clk 0:00:09]}  Kc7 {[%clk 0:00:08]} 47. Bc3 {[%clk 0:00:08]}  Kd6 {[%clk 0:00:07]} 48. Bb4+ {[%clk 0:00:08]}  Ke6 {[%clk 0:00:07]} 49. Bc5 {[%clk 0:00:08]}  Bd5 {[%clk 0:00:07]} 50. Kf2 {[%clk 0:00:08]}  Kd7 {[%clk 0:00:07]} 51. Ke3 {[%clk 0:00:07]}  Kc7 {[%clk 0:00:07]} 52. Bf3 {[%clk 0:00:06]}  e4 {[%clk 0:00:05]} 53. Bd1 {[%clk 0:00:05]}  Nd6 {[%clk 0:00:05]} 54. Bxd6+ {[%clk 0:00:05]}  Kxd6 {[%clk 0:00:06]} 55. Kd4 {[%clk 0:00:06]}  Bb7 {[%clk 0:00:06]} 56. g4 {[%clk 0:00:06]}  f4 {[%clk 0:00:05]} 57. g5 {[%clk 0:00:05]}  f3 {[%clk 0:00:05]} 58. Ke3 {[%clk 0:00:06]}  Kc5 {[%clk 0:00:06]} 59. Bb3 {[%clk 0:00:05]}  Bd5 {[%clk 0:00:04]} 60. Bc2 {[%clk 0:00:05]}  Kxb5 {[%clk 0:00:04]} 61. Bd1 {[%clk 0:00:04]}  Kb4 {[%clk 0:00:04]} 62. Kf2 {[%clk 0:00:03]}  Kc3 {[%clk 0:00:05]} 63. Ke3 {[%clk 0:00:04]}  Bc6 {[%clk 0:00:05]} 64. Kf2 {[%clk 0:00:04]}  Kd2 {[%clk 0:00:05]} 65. Bb3 {[%clk 0:00:04]}  e3+ {[%clk 0:00:05]} 66. Kf1 {[%clk 0:00:04]}  e2+ {[%clk 0:00:06]} 67. Kg1 {[%clk 0:00:04]}  e1=Q+ {[%clk 0:00:07]} 68. Kh2 {[%clk 0:00:05]}  Qh1+ {[%clk 0:00:06]} 69. Kg3 {[%clk 0:00:06]}  f2 {[%clk 0:00:07]} 70. Kf4 {[%clk 0:00:06]}  f1=Q+ {[%clk 0:00:07]} 71. Ke5 {[%clk 0:00:07]}  Qf5+ {[%clk 0:00:07]} 72. Kd6 {[%clk 0:00:07]}  Qhe4 {[%clk 0:00:07]} 73. Be6 {[%clk 0:00:08]}  Qfxe6+ {[%clk 0:00:07]} 74. Kc5 {[%clk 0:00:09]}  Q6d5+ {[%clk 0:00:07]} 75. Kb6 {[%clk 0:00:10]}  Qb4+ {[%clk 0:00:07]} 76. Kc7 {[%clk 0:00:11]}  Qd7# {[%clk 0:00:07]} 0-1


[Site "https://www.chess.com"]